Cogmind - Beta 11 X5 @@@ ROGUE MODE // 2021.06.04 @ 21:38:09 Player: Terminus Result: Self-destructed Performance ------------- Evolutions (8) 4000 Regions Visited (26) 5200 Robots Destroyed (365) 1825 Value Destroyed (15072) 15072 Prototype IDs (84) 1680 Alien Tech Used (0) 0 Bonus (8868) 8868 TOTAL SCORE: 36645 Bonus ------- Triggered High Security 500 High Alert Combat Kills 3858 Follower Combat Kills 5374 Met Data Miner 300 Met Imprinter 300 Was Imprinted 300 Met Zhirov 300 Built Enhanced Grunts 300 Met R17 at Cetus 500 Friendly Fire -2864 Cogmind --------- Core Integrity 1261/1450 Matter 183/300 Energy 137/1030 System Corruption 2% Temperature Cool (0) Movement Walking (116) Location -2/Research Parts ------- > --- POWER (2) -------- Particle Reactor Light Quantum Reactor > --- PROPULSION (6) --- Enhanced Armored Leg Myomer Leg Myomer Leg Advanced Myomer Leg Zionite Composite Leg II Biometal Leg > --- UTILITY (12) ----- Coolant Network High-capacity Storage Unit Experimental Energy Well Experimental Signal Interpreter Long-range Terrain Scanner Experimental Terrain Scan Processor Advanced Particle Charger Advanced Transmission Jammer Heavy Regenerative Plating > --- WEAPON (3) ------- Nova Cannon Nova Cannon Mini Smartbomb Launcher > --- INVENTORY (20) --- Particle Reactor Myomer Leg Advanced Cooling System Advanced Cooling System Experimental Energy Well (600) Experimental Energy Well (600) Advanced Armor Integrity Analyzer Zionite Weapon Casing Zionite Weapon Casing Zionite Phaser-S Zionite Phaser-S Heavy Dispersion Rifle Heavy Dispersion Rifle Zionite Phaser-M Enhanced Nova Cannon Advanced EMP Blaster Improved Plasma Cutter CR-A16's Pointy Stick Peak State ------------ > --- POWER ------------ Light Quantum Reactor Light Quantum Reactor > --- PROPULSION ------- Enhanced Flexi-carbon Leg Enhanced Armored Leg Myomer Leg Advanced Myomer Leg Zionite Composite Leg II Biometal Leg > --- UTILITY ---------- Coolant Network High-capacity Storage Unit Experimental Energy Well Experimental Signal Interpreter Long-range Terrain Scanner Experimental Terrain Scan Processor Experimental Targeting Computer Advanced Particle Charger Advanced Transmission Jammer Heavy Regenerative Plating > --- WEAPON ----------- Nova Cannon Nova Cannon Enhanced Nova Cannon > --- INVENTORY -------- Particle Reactor Particle Reactor Myomer Leg Myomer Leg Advanced Cooling System Advanced Cooling System Experimental Energy Well Experimental Energy Well Advanced Armor Integrity Analyzer Zionite Weapon Casing Zionite Weapon Casing Zionite Phaser-S Zionite Phaser-S Heavy Dispersion Rifle Heavy Dispersion Rifle Zionite Phaser-M Advanced EMP Blaster Mini Smartbomb Launcher Improved Plasma Cutter CR-A16's Pointy Stick [Rating: 189] Favorites ----------- Power Cooled Deuterium Engine Engine Cooled Deuterium Engine Power Core Micro Fission Core Reactor Light Particle Reactor Propulsion Improved Titanium Leg Leg Improved Titanium Leg Utility Cooling System Device Cooling System Storage High-capacity Storage Unit Processor Experimental Targeting Computer Hackware Hacking Suite Protection Improved Medium Armor Plating Weapon Gatling Laser Energy Gun Gatling Laser Energy Cannon Ion Cannon Ballistic Gun Assault Rifle Ballistic Cannon Omega Cannon Launcher Mini Smartbomb Launcher Special Weapon Plasma Cutter Slashing Weapon Chainsword Piercing Weapon CR-A16's Pointy Stick Build | -11 -10 -10 -9 -9 -8 -7 -7 -7 -7 -6 -6 -6 -6 -6 -5 -5 -5 -5 -5 -5 -5 -5 -4 -3 -3 -2 ------- Run | Scr Mat Min Mat Min Mat Fac Low Low Zio Pro Fac Low Low Dat Pro Fac Was Fac Ext Cet Arc Hub Fac Res Tes Res Slots Evolved 16 | . . . 2 . 2 2 . . . . 2 . . . . 2 . . . . . . 2 2 . 2 Power 1 | . . . . . . . . . . . . . . . . 1 . . . . . . . . . . Propulsion 4 | . . . . . 1 . . . . . 1 . . . . 1 . . . . . . . . . 1 Utility 10 | . . . 1 . 1 2 . . . . 1 . . . . . . . . . . . 2 2 . 1 Weapon 1 | . . . 1 . . . . . . . . . . . . . . . . . . . . . . . Parts Attached 386 | 6 12 1 24 3 33 31 2 9 1 2 15 14 2 . 14 22 4 18 18 15 . 4 37 6 50 43 Power 35 | 1 3 . 2 . 2 . . . . . 2 . . . . 3 . 2 . . . 1 2 1 10 6 Engine 18 | 1 3 . 2 . 2 . . . . . 2 . . . . 2 . 2 . . . 1 2 . 1 . Core 1 | . . . . . . . . . . . . . . . . 1 . . . . . . . . . . Reactor 16 | . . . . . . . . . . . . . . . . . . . . . . . . 1 9 6 Propulsion 64 | 2 2 . 5 3 11 4 . . . . 2 4 . . 4 2 . . 4 2 . 2 7 . 4 6 Treads . | . . . . . . . . . . . . . . . . . . . . . . . . . . . Leg 64 | 2 2 . 5 3 11 4 . . . . 2 4 . . 4 2 . . 4 2 . 2 7 . 4 6 Wheel . | . . . . . . . . . . . . . . . . . . . . . . . . . . . Hover . | . . . . . . . . . . . . . . . . . . . . . . . . . . . Flight . | . . . . . . . . . . . . . . . . . . . . . . . . . . . Utility 148 | 1 4 1 5 . 9 18 2 5 . . 4 3 . . 6 5 4 8 12 7 . 1 14 2 22 15 Device 88 | . 3 1 1 . 4 9 1 3 . . 1 2 . . 4 3 3 6 8 1 . . 12 1 16 9 Storage 13 | 1 1 . 1 . 1 . . . . . . . . . . 1 . 1 1 1 . . . 1 1 3 Processor 13 | . . . . . . 1 . . . . 3 . . . 1 . 1 1 . . . 1 1 . 3 1 Hackware 1 | . . . . . . 1 . . . . . . . . . . . . . . . . . . . . Protection 33 | . . . 3 . 4 7 1 2 . . . 1 . . 1 1 . . 3 5 . . 1 . 2 2 Artifact . | . . . . . . . . . . . . . . . . . . . . . . . . . . . Weapon 139 | 2 3 . 12 . 11 9 . 4 1 2 7 7 2 . 4 12 . 8 2 6 . . 14 3 14 16 Energy Gun 69 | 1 3 . 8 . 2 . . . 1 1 5 5 1 . 3 12 . 6 1 3 . . 10 . 5 2 Energy Cannon 40 | . . . 3 . 6 6 . 2 . . . . 1 . . . . 2 . . . . 1 2 8 9 Ballistic Gun 1 | 1 . . . . . . . . . . . . . . . . . . . . . . . . . . Ballistic Cannon 1 | . . . . . . . . . . . . . . . . . . . . . . . . . 1 . Launcher 15 | . . . 1 . 3 . . 2 . 1 . 1 . . . . . . . . . . 2 . . 5 Special Weapon 2 | . . . . . . . . . . . . . . . . . . . . 2 . . . . . . Impact Weapon . | . . . . . . . . . . . . . . . . . . . . . . . . . . . Slashing Weapon 3 | . . . . . . 3 . . . . . . . . . . . . . . . . . . . . Piercing Weapon 8 | . . . . . . . . . . . 2 1 . . 1 . . . 1 1 . . 1 1 . . Special Melee Weapon . | . . . . . . . . . . . . . . . . . . . . . . . . . . . Unidentified Prototypes 33 | . . . 4 . 2 . . . . . 2 . . . 1 2 1 . 1 3 . 1 5 . 4 7 Parts Lost 51 | . 4 1 . . 6 2 . 3 . . . 2 . . 7 2 . . 1 . . . 4 3 13 3 Power 11 | . 3 . . . . . . . . . . . . . . 1 . . . . . . 2 1 3 1 Propulsion 12 | . 1 . . . 3 1 . . . . . 1 . . 2 . . . . . . . . . 3 1 Utility 22 | . . 1 . . 3 1 . 3 . . . 1 . . 4 . . . 1 . . . 2 1 4 1 Weapon 6 | . . . . . . . . . . . . . . . 1 1 . . . . . . . 1 3 . Highest Loss Streak 4 | . 2 1 . . 2 1 . 3 . . . 2 . . 4 2 . . 1 . . . 1 1 3 1 Average Slot Usage (%) 98 | . 96 100 99 100 99 99 100 99 100 100 100 99 100 100 98 99 100 100 99 99 100 99 98 92 94 90 Engine 7 | . 12 14 11 11 9 7 7 7 7 7 6 6 6 6 6 8 5 9 11 11 11 11 9 2 . . Leg 25 | . 28 28 21 22 26 22 23 23 23 23 26 25 26 26 25 29 29 29 29 29 29 28 25 23 23 25 Device 18 | . 12 14 10 11 18 21 22 22 23 23 20 19 20 20 20 22 17 17 17 23 23 20 20 22 19 16 Storage 7 | . 14 14 11 11 9 7 7 7 7 7 6 6 6 6 6 5 5 5 5 5 5 5 5 9 8 8 Processor 7 | . . . . . . 6 7 7 7 7 13 13 13 13 10 5 10 11 10 5 5 7 15 14 13 12 Protection 5 | . . . 11 11 8 5 . 3 7 7 6 6 6 6 6 5 5 5 5 4 5 5 5 4 4 4 Energy Gun 12 | . 24 28 32 33 4 . . . 1 7 17 19 16 13 17 16 17 16 16 16 17 17 14 6 2 . Energy Cannon 8 | . . . . . 22 21 23 22 21 15 1 . 3 6 1 . . . . . . . . 6 10 11 Naked Turns . | . . . . . . . . . . . . . . . . . . . . . . . . . . . Heaviest Build 143 | 13 33 33 42 42 81 82 80 81 81 79 79 80 80 80 80 88 81 88 94 90 90 90 95 93 130 143 Greatest Support 159 | 20 20 20 26 30 45 60 60 60 60 60 84 84 80 80 88 112 112 112 122 130 130 130 144 144 144 159 Greatest Overweight (x) 2 | 2 1 1 2 1 2 2 1 1 1 1 . 1 . . . . . . . . . . . . 1 1 Average Overweight (x) . | . . 1 1 1 1 1 1 1 1 1 . . . . . . . . . . . . . . . . Largest Inventory Capacity 20 | 8 15 15 15 15 20 20 20 20 20 20 20 20 20 20 20 20 20 20 20 20 20 20 20 20 20 20 Average Capacity 18 | 7 12 15 15 15 19 20 20 20 20 20 20 20 20 20 20 20 20 20 20 20 20 20 20 20 20 20 Most Carried 20 | 2 15 14 15 15 20 20 20 20 19 20 20 20 20 20 20 20 20 20 20 20 20 20 20 19 20 20 Average Carried 18 | 1 10 13 14 14 19 19 20 18 18 19 19 19 20 20 18 19 20 19 19 19 20 19 19 17 18 19 Final Capacity 20 | 8 15 15 15 15 20 20 20 20 20 20 20 20 20 20 20 20 20 20 20 20 20 20 20 20 20 20 Final Carried 20 | 2 14 13 15 15 20 20 20 17 19 20 20 20 20 20 19 20 20 20 19 20 20 20 20 17 20 18 Class Distribution -------------------- 25% | Skirmisher 18% | Tank 18% | Scavenger-Skirmisher 11% | Mutant 5% | Machinist-Gunner 5% | Scavenger-Gunner 3% | Scavenger-Mutant Dominant Class ---------------- Mutant | -10/Materials Mutant | -10/Mines Tank | -9/Materials Tank | -9/Mines Tank | -8/Materials Skirmisher | -7/Factory Skirmisher | -7/Lower Caves Skirmisher | -7/Lower Caves Skirmisher | -7/Zion Skirmisher | -6/Proximity Caves Skirmisher | -6/Factory Machinist-Skirmisher | -6/Lower Caves Mutant | -6/Lower Caves Mutant | -6/Data Miner Gunner | -5/Proximity Caves Machinist-Gunner | -5/Factory Machinist-Gunner | -5/Waste Scavenger-Skirmisher | -5/Factory Scavenger-Skirmisher | -5/Extension Commander-Gunner | -5/Cetus Scavenger-Gunner | -5/Archives Scavenger-Gunner | -5/Hub_04(d) Scavenger-Skirmisher | -4/Factory Scavenger-Mutant | -3/Research Scavenger-Skirmisher | -3/Testing Scavenger-Skirmisher | -2/Research Resources | -11 -10 -10 -9 -9 -8 -7 -7 -7 -7 -6 -6 -6 -6 -6 -5 -5 -5 -5 -5 -5 -5 -5 -4 -3 -3 -2 ----------- Run | Scr Mat Min Mat Min Mat Fac Low Low Zio Pro Fac Low Low Dat Pro Fac Was Fac Ext Cet Arc Hub Fac Res Tes Res Matter Collected 4603 | 193 248 10 292 30 361 280 68 150 20 33 150 120 20 . 154 205 40 186 243 175 . 57 379 53 528 608 Remotely . | . . . . . . . . . . . . . . . . . . . . . . . . . . . Salvage Created 19432 | . 775 48 2111 455 2106 957 43 353 . 127 431 161 . . 403 969 1547 659 205 240 . 378 1254 317 3163 2730 Parts 746 | . 41 . 86 17 125 47 1 14 . 11 13 7 . . 17 24 7 21 3 15 . 9 32 19 132 105 Haulers Intercepted 27 | . 2 . 6 . 5 . . . . . 1 . . . . . . 3 . . . 1 2 . 3 4 Recyclers Shooed 13 | . 3 . 3 . 2 . . . . . . . . . . 2 . . . . . 1 . . . 2 Parts Field Recycled . | . . . . . . . . . . . . . . . . . . . . . . . . . . . Retrieved Matter . | . . . . . . . . . . . . . . . . . . . . . . . . . . . Parts Self-Destructed 45 | . . . . . . . 1 3 . 15 . 6 . . 20 . . . . . . . . . . . Prevented 4 | . . . . . . . . . . 4 . . . . . . . . . . . . . . . . Kills | -11 -10 -10 -9 -9 -8 -7 -7 -7 -7 -6 -6 -6 -6 -6 -5 -5 -5 -5 -5 -5 -5 -5 -4 -3 -3 -2 ------- Run | Scr Mat Min Mat Min Mat Fac Low Low Zio Pro Fac Low Low Dat Pro Fac Was Fac Ext Cet Arc Hub Fac Res Tes Res Combat Hostiles Destroyed 259 | . 11 2 30 11 35 17 1 9 . 3 3 3 . . 8 7 6 4 3 4 . 4 19 4 39 36 Melee 4 | . . . . . . . . . . . . 1 . . 1 . . . . . . . . 1 1 . Guns 101 | . 11 2 25 10 4 . . . . . 2 1 . . 7 5 4 4 2 3 . 2 13 1 4 1 Cannons 87 | . . . . . 22 15 . 2 . 1 . . . . . . . . . . . . . . 30 17 AOE 37 | . . . 5 . 5 . . 7 . 2 1 . . . . . . . . . . . 3 . . 14 Classes Destroyed 22 | . 6 . 4 . 2 1 . 1 . 1 . . . . . . 1 . 1 . . . . . 3 2 Worker 8 | . . . 3 . 1 . . . . . . . . . . 1 . 1 . . . . . . 1 1 Builder 12 | . 2 . 3 . 1 . . . . . 1 . . . . 1 . . . . . . 3 . 1 . Tunneler 4 | . . . 1 . 2 . . . . . . . . . . . . . . . . 1 . . . . Hauler 27 | . 2 . 6 . 5 . . . . . 1 . . . . . . 3 . . . 1 2 . 3 4 Recycler 21 | . 3 . 6 1 2 . . . . . 1 . . . . 5 . 1 . . . . . . 1 1 Mechanic 1 | . . . . . . . . . . . . . . . . . . . . . . . . . . 1 Operator 9 | . 1 . 3 . 2 . . . . . . . . . . . . . . . . 1 . 1 . 1 Watcher 20 | . 1 . 3 . 4 1 . . . . . . . . . 2 . 3 1 . . 1 . . 3 1 Swarmer 41 | . . . 3 4 7 . . 3 . 2 1 . . . 1 1 . . . 2 . . 3 . . 14 Saboteur 3 | . . . . . . . . . . . . . . . . . . . . . . . . . 2 1 Grunt 104 | . 11 2 18 7 18 5 . 1 . . 2 . . . 4 3 . . 1 1 . 3 . . 20 8 Brawler 8 | . . . . . 1 1 . . . . . . . . . . . . . . . . . . 2 4 Duelist 3 | . . . . . . . . . . . . . . . . . . . . . . . . . 2 1 Protector 2 | . . . . . . . . . . . . . . . . . . . . . . . . . 2 . Sentry 39 | . . . 9 . 8 5 . . . . . . . . 1 3 . 1 1 . . 1 6 2 . 2 Demolisher 1 | . . . . . . . . . . . . . . . . . . . 1 . . . . . . . Hunter 12 | . . . . . 1 1 . . . . . 2 . . . . . . . . . . 4 . 2 2 Programmer 31 | . . . . . . 5 1 . . . . . . . 1 . . 3 . . . . 6 2 9 4 Behemoth 3 | . . . . . . . . . . 1 . 1 . . 1 . . . . . . . . . . . Compactor 6 | . . . . . . . . . . . . . . . . . 6 . . . . . . . . . Cetus Guard 1 | . . . . . . . . . . . . . . . . . . . . 1 . . . . . . Z-Light 2 | . . . . . . . . . . . . . . . . . . . . . . . . . . 2 Thug 5 | . . . . . . . . 4 . . 1 . . . . . . . . . . . . . . . Mutant 1 | . . . . . . . . 1 . . . . . . . . . . . . . . . . . . Best Kill Streak 12 | . 4 2 12 3 6 4 1 5 . 2 3 2 . . 3 9 2 5 1 3 . 3 5 2 7 11 Combat Bots Only 10 | . 2 2 5 3 4 4 1 5 . 2 2 2 . . 3 2 2 2 1 3 . 3 5 2 7 10 Max Kills in Single Turn 4 | . 2 1 3 1 4 1 1 4 . 2 1 2 . . 1 1 1 1 1 1 . 2 3 1 2 3 Gunslinging . | . . . . . . . . . . . . . . . . . . . . . . . . . . . Exploded 4 | . . . 3 . 3 . . 4 . 2 1 . . . . . . . . . . . 3 . . 3 Melee 1 | . . . . . . . . . . . . 1 . . 1 . . . . . . . . 1 1 . Uniques/NPCs Destroyed 1 | . . . . . . . . . . . . . . . . . . . . 1 . . . . . . A7 (-5/Cetus) Combat | -11 -10 -10 -9 -9 -8 -7 -7 -7 -7 -6 -6 -6 -6 -6 -5 -5 -5 -5 -5 -5 -5 -5 -4 -3 -3 -2 -------- Run | Scr Mat Min Mat Min Mat Fac Low Low Zio Pro Fac Low Low Dat Pro Fac Was Fac Ext Cet Arc Hub Fac Res Tes Res Damage Taken 15057 | . 558 116 729 314 1425 869 108 510 . 16 183 1033 . . 836 464 . 190 471 119 . 88 1562 358 3320 1788 Core 1503 | . 67 12 159 29 152 96 . 38 . . . 138 . . 54 33 . . 96 30 . 29 102 50 229 189 Absorbed by Shields 67 | . . . . . . . . . . . . . . . . . . . 67 . . . . . . . Core Remaining (%) 77 | 100 . 68 . 53 72 . . . . 80 . . . . 77 . . . . . . 81 91 . 78 . Volleys Fired 732 | . 52 6 90 23 95 40 5 9 . 4 12 8 3 . 29 34 22 24 8 17 . 12 46 14 106 73 Largest 3 | . 2 2 3 3 3 3 3 3 . 3 3 3 1 . 3 3 3 3 3 3 . 3 3 3 3 3 Hottest 346 | . 130 130 195 165 180 180 180 180 . 200 240 240 90 . 240 240 240 240 240 240 . 240 268 268 339 346 Shots Fired 1936 | . 104 12 260 69 275 117 15 17 . 10 36 22 3 . 54 102 66 66 24 34 . 35 115 30 285 185 Gun 1103 | . 104 12 255 69 54 . . . . 3 36 22 . . 38 102 66 63 24 26 . 35 113 15 52 14 Cannon 797 | . . . . . 216 117 15 12 . 6 . . 3 . 16 . . 3 . . . . 1 15 233 160 Launcher 28 | . . . 5 . 5 . . 5 . 1 . . . . . . . . . . . . 1 . . 11 Special 8 | . . . . . . . . . . . . . . . . . . . . 8 . . . . . . Kinetic 21 | . 21 . . . . . . . . . . . . . . . . . . . . . . . . . Thermal 1875 | . 83 12 255 69 270 117 15 12 . 9 36 22 3 . 54 96 66 60 24 34 . 35 114 30 285 174 Explosive 25 | . . . 5 . 5 . . 2 . 1 . . . . . . . . . . . . 1 . . 11 Electromagnetic 3 | . . . . . . . . 3 . . . . . . . . . . . . . . . . . . Phasic 12 | . . . . . . . . . . . . . . . . 6 . 6 . . . . . . . . Robot Hit Streak 61 | . 8 10 22 5 13 9 6 9 . 6 17 20 . . 28 39 20 25 26 26 . 16 61 27 35 22 Robot Miss Streak 6 | . 4 2 4 4 3 3 3 3 . 1 2 2 . . 4 5 2 3 2 6 . 3 2 1 3 3 Penetration Max . | . . . . . . . . . . . . . . . . . . . . . . . . . . . Secondary Targets 10 | . 1 1 . 1 2 . . . . . . . . . 1 1 . . . 1 . 1 1 . . . Max Gunslinging Chain 1 | . 1 1 . 1 1 . . . . . . . . . 1 1 . . . 1 . 1 1 . . . Shots Hit Robots 1368 | . 72 12 160 36 157 74 10 9 . 6 36 21 . . 39 88 66 53 24 35 . 33 109 24 205 99 Core Hits 854 | . 53 13 82 15 73 34 2 20 . 5 26 9 . . 36 61 44 41 22 28 . 26 81 11 98 74 Critical Kills 12 | . . . . . . 1 . . . . . . . . . . . . . . . . . 1 3 7 Critical Parts Destroyed 2 | . . . . . . . . . . . . . . . . . . . . . . . . . . 2 Critical Strikes 36 | . 1 . 9 5 . 1 . . . . . . . . . 1 . . . . . . 2 1 7 9 Burn 22 | . 1 . 9 5 . . . . . . . . . . . 1 . . . . . . 2 . 4 . Meltdown 10 | . . . . . . 1 . . . . . . . . . . . . . . . . . 1 3 5 Destroy 4 | . . . . . . . . . . . . . . . . . . . . . . . . . . 4 Melee Attacks 36 | . . . . . . 4 . . . . 3 10 . . 6 . . . 1 5 . . 4 3 . . Impact . | . . . . . . . . . . . . . . . . . . . . . . . . . . . Slashing 4 | . . . . . . 4 . . . . . . . . . . . . . . . . . . . . Piercing 32 | . . . . . . . . . . . 3 10 . . 6 . . . 1 5 . . 4 3 . . Sneak Attacks 5 | . . . . . . . . . . . . . . . . . . . . 5 . . . . . . Combat Hostiles . | . . . . . . . . . . . . . . . . . . . . . . . . . . . Follow-up Attacks . | . . . . . . . . . . . . . . . . . . . . . . . . . . . Damage Inflicted 42232 | . 917 211 3285 785 4124 1862 268 797 . 269 1015 591 . . 985 2289 1903 1352 544 1153 . 778 3273 841 8363 6627 Guns 20236 | . 914 210 2813 765 711 . . . . 61 915 298 . . 863 2268 1903 1352 505 721 . 752 2915 373 1573 324 Cannons 16303 | . . . . . 2914 1849 268 181 . 103 . . . . . . . . . . . . . 356 6526 4106 Explosions 4141 | . . . 465 . 477 . . 616 . 105 100 . . . . . . . . . . . 193 . . 2185 Melee 1064 | . . . . . . . . . . . . 293 . . 122 . . . 39 357 . . 141 112 . . Ramming 413 | . 3 1 7 20 22 13 . . . . . . . . . 21 . . . . . 26 24 . 264 12 Kinetic 209 | . 209 . . . . . . . . . . . . . . . . . . . . . . . . . Thermal 36391 | . 705 210 2813 765 3625 1849 268 265 . 164 1015 298 . . 863 2169 1903 1253 505 796 . 752 2915 729 8099 4430 Explosive 3643 | . . . 465 . 477 . . 218 . 105 . . . . . . . . . . . . 193 . . 2185 Electromagnetic 314 | . . . . . . . . 314 . . . . . . . . . . . . . . . . . . Impact . | . . . . . . . . . . . . . . . . . . . . . . . . . . . Slashing . | . . . . . . . . . . . . . . . . . . . . . . . . . . . Piercing 1064 | . . . . . . . . . . . . 293 . . 122 . . . 39 357 . . 141 112 . . Phasic 198 | . . . . . . . . . . . . . . . . 99 . 99 . . . . . . . . Highest Corruption 16 | . 1 1 1 1 2 3 4 4 4 . . . . . 11 . . 3 6 6 6 6 4 . 16 2 Average Corruption 4 | . 1 1 1 1 2 2 3 4 4 . . . . . 10 . . 2 3 6 6 6 2 . 9 2 Corruption Purged . | . . . . . . . . . . . . . . . . . . . . . . . . . . . Effects 209 | . . 4 . 4 2 10 13 12 1 . . . . . 20 . . 15 21 18 2 10 5 . 69 3 Message Errors 51 | . . 2 . 3 1 2 3 4 . . . . . . 4 . . 5 4 4 1 1 1 . 15 1 Matter Fused 54 | . . . . . . 2 2 5 . . . . . . 5 . . 6 5 3 . 2 2 . 22 . Heat Flow Errors 23 | . . . . . . 1 4 . . . . . . . 1 . . 1 4 4 . . . . 8 . Energy Discharges 29 | . . 1 . 1 . 4 2 2 1 . . . . . 3 . . . 5 2 . 2 . . 4 2 Parts Rejected 2 | . . . . . . . . . . . . . . . 1 . . . . . . 1 . . . . Data Loss (minor) 24 | . . 1 . . 1 1 2 1 . . . . . . 2 . . 3 2 . 1 2 1 . 7 . Data Loss (major) 10 | . . . . . . . . . . . . . . . 1 . . . 1 2 . 1 . . 5 . Misfires 3 | . . . . . . . . . . . . . . . 1 . . . . 1 . . . . 1 . Weapon Failures 13 | . . . . . . . . . . . . . . . 2 . . . . 2 . 1 1 . 7 . Overload Shots . | . . . . . . . . . . . . . . . . . . . . . . . . . . . Overflow Damage 416 | . . . . . 42 21 . . . . . . . . . . . . . 99 . . . 7 166 81 Projectiles 245 | . . . . . 42 21 . . . . . . . . . . . . . 3 . . . 7 103 69 Explosions 12 | . . . . . . . . . . . . . . . . . . . . . . . . . . 12 Melee 159 | . . . . . . . . . . . . . . . . . . . . 96 . . . . 63 . Knockbacks 4 | . . . . . . . . . . . . . . . . 1 . . . . . . . . 3 . Impact 4 | . . . . . . . . . . . . . . . . 1 . . . . . . . . 3 . Kinetic . | . . . . . . . . . . . . . . . . . . . . . . . . . . . Secondary . | . . . . . . . . . . . . . . . . . . . . . . . . . . . Self-Inflicted Damage 148 | . . . 40 . . . . 27 . . 42 . . . . . . . . . . . . . . 39 Shots 5 | . . . 1 . . . . 2 . . 1 . . . . . . . . . . . . . . 1 Rammed . | . . . . . . . . . . . . . . . . . . . . . . . . . . . Targets Rammed 44 | . 2 1 3 5 4 2 . 1 . . . . . . . 2 . . . . . 2 4 . 16 2 Kicked 44 | . 2 1 3 5 4 2 . 1 . . . . . . . 2 . . . . . 2 4 . 16 2 Crushed . | . . . . . . . . . . . . . . . . . . . . . . . . . . . Highest Temperature 408 | . 78 76 207 248 22 153 152 14 . . 30 12 . . 133 66 . 111 172 220 . 30 168 258 408 36 Average Temperature 54 | . 17 40 59 94 9 52 60 7 . . 8 8 . . 49 19 . 9 20 44 . 8 47 91 83 16 Received Heat Transfer 3217 | . 234 78 288 135 711 198 . 216 . . 36 96 . . 129 54 . . 16 . . 27 87 27 615 270 Effects 2 | . . . . 1 . . . . . . . . . . . . . . . . . . . . 1 . Shutdowns 1 | . . . . . . . . . . . . . . . . . . . . . . . . . 1 . Energy Bleed 1 | . . . . 1 . . . . . . . . . . . . . . . . . . . . . . Siege Activations . | . . . . . . . . . . . . . . . . . . . . . . . . . . . Robots Corrupted . | . . . . . . . . . . . . . . . . . . . . . . . . . . . Combat Hostiles . | . . . . . . . . . . . . . . . . . . . . . . . . . . . Parts Fried 4 | . . . . . . . . 1 . . . . . . . . . . . . . . . . . 3 Impact Corruptions 4 | . . . . . . . . . . . . . . . . . . . . . . . . . 4 . Robots Melted 36 | . . . . 1 4 2 1 . . . 2 1 . . . 3 2 . 1 1 . 2 3 2 6 5 Combat Hostiles 30 | . . . . 1 4 2 1 . . . . 1 . . . 2 2 . 1 1 . 2 3 2 4 4 Parts Melted 177 | . 2 . 17 5 13 11 1 2 . 1 4 7 . . 2 11 8 10 6 3 . 7 17 1 32 17 Heat Transferred 60505 | . 1476 255 6262 1850 6068 2775 370 396 . 273 2150 675 . . 1925 5000 4325 2675 1125 1921 . 1700 5527 1022 8702 4033 Parts Sabotaged 1 | . . . . . . . . . . . . . . . . . . . . . . . . . . 1 Parts Stolen . | . . . . . . . . . . . . . . . . . . . . . . . . . . . Parts Stripped . | . . . . . . . . . . . . . . . . . . . . . . . . . . . Power Chain Reactions 1 | . . . . . . . . 1 . . . . . . . . . . . . . . . . . . Missiles Intercepted . | . . . . . . . . . . . . . . . . . . . . . . . . . . . Alert | -11 -10 -10 -9 -9 -8 -7 -7 -7 -7 -6 -6 -6 -6 -6 -5 -5 -5 -5 -5 -5 -5 -5 -4 -3 -3 -2 ------- Run | Scr Mat Min Mat Min Mat Fac Low Low Zio Pro Fac Low Low Dat Pro Fac Was Fac Ext Cet Arc Hub Fac Res Tes Res Peak Influence 2394 | . 251 50 683 326 585 405 . . . . 972 . . . . 1570 549 367 747 1052 332 693 1308 813 1068 2394 Initial 675 | . . 34 . 241 28 237 . . . . 77 . . . . 56 549 244 . 412 332 116 339 675 456 589 Average 390 | . 65 18 251 162 252 168 . . . . 308 . . . . 583 449 163 366 813 332 408 626 724 641 1421 Maximum Alert Level 5 | . 1 . 2 1 2 2 . . . . 3 . . . . 4 2 1 3 3 1 2 4 3 3 5 Low Security (%) 39 | 100 86 100 45 69 43 59 . . . . 38 . . . . 33 . 55 34 . . 27 . . . . Level 1 25 | . 13 . 41 30 25 38 . . . . 46 . . . . 5 49 44 27 1 100 18 41 . 4 . Level 2 18 | . . . 13 . 31 1 . . . . . . . . . 15 50 . 22 16 . 53 26 19 66 5 Level 3 11 | . . . . . . . . . . . 14 . . . . 35 . . 15 81 . . 16 80 29 24 Level 4 3 | . . . . . . . . . . . . . . . . 8 . . . . . . 15 . . 39 Level 5 . | . . . . . . . . . . . . . . . . . . . . . . . . . . 4 High Security 1 | . . . . . . . . . . . . . . . . . . . . . . . . . . 26 Max Security . | . . . . . . . . . . . . . . . . . . . . . . . . . . . Squads Dispatched 85 | . 4 . 3 . 4 8 . . . . 5 . . . . 10 . 3 4 . . 5 12 2 11 14 Investigation 14 | . 2 . . . 1 2 . . . . 1 . . . . . . 1 2 . . 1 3 . 1 . Extermination 19 | . . . . . . 4 . . . . 1 . . . . 2 . 2 . . . . 3 1 4 2 Reinforcement 27 | . 2 . 3 . 3 2 . . . . 2 . . . . 5 . . 1 . . 3 2 . 2 2 Assault 21 | . . . . . . . . . . . 1 . . . . 3 . . 1 . . . 1 1 4 10 Garrison 4 | . . . . . . . . . . . . . . . . . . . . . . 1 3 . . . Intercept . | . . . . . . . . . . . . . . . . . . . . . . . . . . . Construction Impeded 7 | . . . . . . . . . . . . . . . . 3 . . . . . . 2 . 1 1 Haulers Reinforced 5 | . . . . . . . . . . . 2 . . . . 1 . . . . . 1 . . . 1 Cargo Convoy Interrupts 1 | . . . . . . . . . . . . . . . . 1 . . . . . . . . . . Stealth | -11 -10 -10 -9 -9 -8 -7 -7 -7 -7 -6 -6 -6 -6 -6 -5 -5 -5 -5 -5 -5 -5 -5 -4 -3 -3 -2 --------- Run | Scr Mat Min Mat Min Mat Fac Low Low Zio Pro Fac Low Low Dat Pro Fac Was Fac Ext Cet Arc Hub Fac Res Tes Res Distress Signals 18 | . 1 . 3 . 4 . . . . . . . . . . 1 . . 1 2 . 1 3 . 1 1 Communications Jammed 90 | . . . . . . . . . . . . . . . . . . . . . . . . . 19 71 Distress Signals 90 | . . . . . . . . . . . . . . . . . . . . . . . . . 19 71 Times Spotted 487 | . 18 2 44 14 47 24 1 9 . 7 21 3 . . 11 31 6 8 31 19 . 16 37 7 57 74 Peak Tracking Total 23 | . 4 2 5 4 7 4 1 5 . 3 5 2 . . 5 8 1 2 6 6 . 5 6 4 5 23 Tactical Retreats 10 | . . . 1 . 3 . . . . . . . . . . 1 . . . . . . 1 . 2 2 Traps | -11 -10 -10 -9 -9 -8 -7 -7 -7 -7 -6 -6 -6 -6 -6 -5 -5 -5 -5 -5 -5 -5 -5 -4 -3 -3 -2 ------- Run | Scr Mat Min Mat Min Mat Fac Low Low Zio Pro Fac Low Low Dat Pro Fac Was Fac Ext Cet Arc Hub Fac Res Tes Res Traps Triggered 23 | . 4 . 2 . 2 2 . . . . . . . . . 1 . 1 . . . . 5 . 2 4 Indirectly . | . . . . . . . . . . . . . . . . . . . . . . . . . . . Trap Hack Attempts . | . . . . . . . . . . . . . . . . . . . . . . . . . . . Triggered . | . . . . . . . . . . . . . . . . . . . . . . . . . . . Disarmed . | . . . . . . . . . . . . . . . . . . . . . . . . . . . Reprogrammed . | . . . . . . . . . . . . . . . . . . . . . . . . . . . Reused . | . . . . . . . . . . . . . . . . . . . . . . . . . . . Traps Extracted . | . . . . . . . . . . . . . . . . . . . . . . . . . . . Installed . | . . . . . . . . . . . . . . . . . . . . . . . . . . . Triggered 2 | . . . . . . . . . . . . 1 . . . 1 . . . . . . . . . . Machines | -11 -10 -10 -9 -9 -8 -7 -7 -7 -7 -6 -6 -6 -6 -6 -5 -5 -5 -5 -5 -5 -5 -5 -4 -3 -3 -2 ---------- Run | Scr Mat Min Mat Min Mat Fac Low Low Zio Pro Fac Low Low Dat Pro Fac Was Fac Ext Cet Arc Hub Fac Res Tes Res Machines Disabled 45 | . 1 . 6 . 4 1 . . . . 5 . . . . 8 . . 2 . . 1 4 . 10 3 Max in Single Turn 2 | . 1 . 1 . 1 1 . . . . 2 . . . . 2 . . . . . . . . 1 . Garrison Access 4 | . . . . . . 1 . . . . . . . . . 1 . 1 . . . . . . 1 . Machines Sabotaged . | . . . . . . . . . . . . . . . . . . . . . . . . . . . Garrisons Compromised 1 | . . . . . . . . . . . . . . . . 1 . . . . . . . . . . Overloaded Fab Kills . | . . . . . . . . . . . . . . . . . . . . . . . . . . . Fab Network Shutdowns 2 | . . . . . . . . . . . 1 . . . . . . . . . . . 1 . . . Hacking | -11 -10 -10 -9 -9 -8 -7 -7 -7 -7 -6 -6 -6 -6 -6 -5 -5 -5 -5 -5 -5 -5 -5 -4 -3 -3 -2 --------- Run | Scr Mat Min Mat Min Mat Fac Low Low Zio Pro Fac Low Low Dat Pro Fac Was Fac Ext Cet Arc Hub Fac Res Tes Res Machines Accessed 44 | . 4 . 7 . 7 7 . . . . 3 . . 4 . 3 . 3 . . . . 4 . 2 . Terminals 15 | . 3 . 5 . 5 2 . . . . . . . . . . . . . . . . . . . . Fabricators 10 | . . . . . . 4 . . . . 2 . . . . 2 . . . . . . 1 . 1 . Repair Stations 6 | . . . 1 . 2 . . . . . . . . . . . . 1 . . . . 2 . . . Recycling Units 1 | . 1 . . . . . . . . . . . . . . . . . . . . . . . . . Scanalyzers 2 | . . . 1 . . . . . . . . . . . . . . 1 . . . . . . . . Garrison Access 6 | . . . . . . 1 . . . . 1 . . . . 1 . 1 . . . . 1 . 1 . Total Hacks 147 | . 9 . 29 . 28 17 . . . . 9 . . 27 . 8 . 6 . . . . 9 . 5 . Successful 104 | . 5 . 20 . 19 10 . . . . 7 . . 27 . 4 . 4 . . . . 5 . 3 . Failed 43 | . 4 . 9 . 9 7 . . . . 2 . . . . 4 . 2 . . . . 4 . 2 . Catastrophic 11 | . . . . . 2 4 . . . . 1 . . . . 1 . 1 . . . . 1 . 1 . Database Lockouts . | . . . . . . . . . . . . . . . . . . . . . . . . . . . Manual 251 | . 5 . 17 . 18 3 . . . . 29 . . . . 19 . 30 63 16 . 14 12 . 12 13 Terminals 56 | . 8 . 21 . 22 5 . . . . . . . . . . . . . . . . . . . . Fabricators 31 | . . . . . . 11 . . . . 8 . . . . 7 . . . . . . 2 . 3 . Repair Stations 20 | . . . 6 . 6 . . . . . . . . . . . . 2 . . . . 6 . . . Recycling Units 1 | . 1 . . . . . . . . . . . . . . . . . . . . . . . . . Scanalyzers 4 | . . . 2 . . . . . . . . . . . . . . 2 . . . . . . . . Garrison Access 8 | . . . . . . 1 . . . . 1 . . . . 1 . 2 . . . . 1 . 2 . Terminal Hacks 45 | . 1 . 7 . 9 1 . . . . . . . 27 . . . . . . . . . . . . Record 11 | . . . . . . . . . . . . . . 11 . . . . . . . . . . . . Part Schematic 9 | . . . . . . . . . . . . . . 9 . . . . . . . . . . . . Robot Schematic 4 | . . . . . . . . . . . . . . 4 . . . . . . . . . . . . Prototype ID Bank 3 | . . . . . . . . . . . . . . 3 . . . . . . . . . . . . Branch Access Points 2 | . . . 1 . . 1 . . . . . . . . . . . . . . . . . . . . Terminal Index 1 | . . . . . 1 . . . . . . . . . . . . . . . . . . . . . Alert Level 5 | . . . 2 . 3 . . . . . . . . . . . . . . . . . . . . . Unreport Threat 3 | . 1 . . . 2 . . . . . . . . . . . . . . . . . . . . . Locate Traps 1 | . . . . . 1 . . . . . . . . . . . . . . . . . . . . . Hauler Manifests 1 | . . . 1 . . . . . . . . . . . . . . . . . . . . . . . Zone Layout 5 | . . . 3 . 2 . . . . . . . . . . . . . . . . . . . . . Fabricator Hacks 18 | . . . . . . 5 . . . . 7 . . . . 2 . . . . . . 2 . 2 . Load Schematic 8 | . . . . . . 2 . . . . 3 . . . . 1 . . . . . . 1 . 1 . Build 10 | . . . . . . 3 . . . . 4 . . . . 1 . . . . . . 1 . 1 . Repair Station Hacks 15 | . . . 6 . 5 . . . . . . . . . . . . 1 . . . . 3 . . . Scan Component 9 | . . . 3 . 3 . . . . . . . . . . . . 1 . . . . 2 . . . Repair 6 | . . . 3 . 2 . . . . . . . . . . . . . . . . . 1 . . . Recycling Unit Hacks . | . . . . . . . . . . . . . . . . . . . . . . . . . . . Scanalyzer 4 | . . . 2 . . . . . . . . . . . . . . 2 . . . . . . . . Insert Component 2 | . . . 1 . . . . . . . . . . . . . . 1 . . . . . . . . Analyze 2 | . . . 1 . . . . . . . . . . . . . . 1 . . . . . . . . Garrison Access Hacks 4 | . . . . . . 1 . . . . . . . . . 1 . 1 . . . . . . 1 . Seal Access 4 | . . . . . . 1 . . . . . . . . . 1 . 1 . . . . . . 1 . Unauthorized Hacks 18 | . 4 . 5 . 5 3 . . . . . . . . . 1 . . . . . . . . . . Terminals 14 | . 3 . 5 . 5 1 . . . . . . . . . . . . . . . . . . . . Assimilate 1 | . . . . . . 1 . . . . . . . . . . . . . . . . . . . . Botnet 13 | . 3 . 5 . 5 . . . . . . . . . . . . . . . . . . . . . Fabricators 3 | . . . . . . 2 . . . . . . . . . 1 . . . . . . . . . . Prioritize 2 | . . . . . . 1 . . . . . . . . . 1 . . . . . . . . . . Siphon 1 | . . . . . . 1 . . . . . . . . . . . . . . . . . . . . Repair Stations . | . . . . . . . . . . . . . . . . . . . . . . . . . . . Recycling Units 1 | . 1 . . . . . . . . . . . . . . . . . . . . . . . . . Tunnel 1 | . 1 . . . . . . . . . . . . . . . . . . . . . . . . . Scanalyzers . | . . . . . . . . . . . . . . . . . . . . . . . . . . . Garrison Access . | . . . . . . . . . . . . . . . . . . . . . . . . . . . Data Cores Recovered 2 | . . . 1 . . . . . . . . . . . . . . . . . . . . . . 1 Used . | . . . . . . . . . . . . . . . . . . . . . . . . . . . Hacking Detections 33 | . 3 . 6 . 7 6 . . . . 3 . . . . 2 . 1 . . . . 4 . 1 . Full Trace Events 2 | . . . . . . 1 . . . . . . . . . . . . . . . . . . 1 . Feedback Events . | . . . . . . . . . . . . . . . . . . . . . . . . . . . Feedback Blocked . | . . . . . . . . . . . . . . . . . . . . . . . . . . . Robot Schematics Acquired 12 | . . . . . . . . . . . . . . 4 . . . . 3 . . . . . 5 . Robots Built . | . . . . . . . . . . . . . . . . . . . . . . . . . . . Matter . | . . . . . . . . . . . . . . . . . . . . . . . . . . . Time . | . . . . . . . . . . . . . . . . . . . . . . . . . . . Total Robot Build Rating . | . . . . . . . . . . . . . . . . . . . . . . . . . . . Part Schematics Acquired 127 | . . . 1 . . . . . . . 24 . . 9 . . . 1 70 11 . 11 . . . . Parts Built 11 | . . . . . . 3 . . . . 5 . . . . 1 . . . . . . 1 . 1 . Matter 1916 | . . . . . . 341 . . . . 621 . . . . 351 . . . . . . 318 . 285 . Time 983 | . . . . . . 155 . . . . 320 . . . . 187 . . . . . . 169 . 152 . Total Part Build Rating 45 | . . . . . . 6 . . . . 21 . . . . 7 . . . . . . 6 . 5 . Parts Repaired 6 | . . . 3 . 2 . . . . . . . . . . . . . . . . . 1 . . . Time 198 | . . . 90 . 64 . . . . . . . . . . . . . . . . . 44 . . . Parts Recycled . | . . . . . . . . . . . . . . . . . . . . . . . . . . . Recycled Matter . | . . . . . . . . . . . . . . . . . . . . . . . . . . . Retrieved Matter . | . . . . . . . . . . . . . . . . . . . . . . . . . . . Retrieved Components . | . . . . . . . . . . . . . . . . . . . . . . . . . . . Parts Scanalyzed 2 | . . . 1 . . . . . . . . . . . . . . 1 . . . . . . . . Part Schematics Acquired 2 | . . . 1 . . . . . . . . . . . . . . 1 . . . . . . . . Parts Damaged . | . . . . . . . . . . . . . . . . . . . . . . . . . . . Bothacking | -11 -10 -10 -9 -9 -8 -7 -7 -7 -7 -6 -6 -6 -6 -6 -5 -5 -5 -5 -5 -5 -5 -5 -4 -3 -3 -2 ------------ Run | Scr Mat Min Mat Min Mat Fac Low Low Zio Pro Fac Low Low Dat Pro Fac Was Fac Ext Cet Arc Hub Fac Res Tes Res Used RIF Installer . | . . . . . . . . . . . . . . . . . . . . . . . . . . . Robots Hacked . | . . . . . . . . . . . . . . . . . . . . . . . . . . . Non-combat . | . . . . . . . . . . . . . . . . . . . . . . . . . . . Combat . | . . . . . . . . . . . . . . . . . . . . . . . . . . . Robot Hacks Applied . | . . . . . . . . . . . . . . . . . . . . . . . . . . . Relay Couplers Released . | . . . . . . . . . . . . . . . . . . . . . . . . . . . Robots Rewired 16 | . . . . . . . . . . . . . . . . . . . 16 . . . . . . . Allies Hacked . | . . . . . . . . . . . . . . . . . . . . . . . . . . . Hacks Repelled . | . . . . . . . . . . . . . . . . . . . . . . . . . . . Allies | -11 -10 -10 -9 -9 -8 -7 -7 -7 -7 -6 -6 -6 -6 -6 -5 -5 -5 -5 -5 -5 -5 -5 -4 -3 -3 -2 -------- Run | Scr Mat Min Mat Min Mat Fac Low Low Zio Pro Fac Low Low Dat Pro Fac Was Fac Ext Cet Arc Hub Fac Res Tes Res Total Allies 98 | . . . . 4 . 1 . . 4 . 5 . . . 1 23 . 1 39 5 . 3 6 . . 6 Largest Group 28 | . . . . 3 1 1 . . 4 4 5 . . . 1 17 . 1 28 18 4 6 3 . . 3 Highest-Rated Group 955 | . . . . 40 16 26 . . 151 151 263 . . . 95 723 . 30 955 947 308 490 280 . . 342 Highest-Rated Ally 156 | . . . . 31 16 26 . . 39 39 85 . . . 95 85 . 30 156 156 95 95 103 . . 114 Zionite Dispatches 12 | . . . . . . . . . . . 1 . . . . 2 . 1 2 . . 1 3 . . 2 Heavy 3 | . . . . . . . . . . . 1 . . . . 1 . . . . . . 1 . . . Light 3 | . . . . . . . . . . . . . . . . . . . . . . 1 . . . 2 Fire 4 | . . . . . . . . . . . . . . . . 1 . . 2 . . . 1 . . . Demo 1 | . . . . . . . . . . . . . . . . . . . . . . . 1 . . . Resource Resupply 1 | . . . . . . . . . . . . . . . . . . 1 . . . . . . . . Total Orders 5 | . . . . . . . . . . . . . . . . . . . 1 4 . . . . . . STAY 2 | . . . . . . . . . . . . . . . . . . . . 2 . . . . . . FOLLOW 2 | . . . . . . . . . . . . . . . . . . . . 2 . . . . . . DROP 1 | . . . . . . . . . . . . . . . . . . . 1 . . . . . . . Ally Attacks 815 | . . . . 18 13 . . . . 22 61 . . . 19 94 . . 236 128 . 76 55 . . 93 Total Damage 23458 | . . . . 164 103 . . . . 627 2431 . . . 536 3523 . . 4687 2866 . 2284 1992 . . 4245 Kills 174 | . . . . 2 2 . . . . 6 25 . . . 3 37 . . 34 22 . 10 15 . . 18 Allies Corrupted 1 | . . . . . . . . . . . . . . . . . . . . . . . 1 . . . Allies Melted 1 | . . . . . . . . . . . . . . . . . . . . . . . . . . 1 Intel | -11 -10 -10 -9 -9 -8 -7 -7 -7 -7 -6 -6 -6 -6 -6 -5 -5 -5 -5 -5 -5 -5 -5 -4 -3 -3 -2 ------- Run | Scr Mat Min Mat Min Mat Fac Low Low Zio Pro Fac Low Low Dat Pro Fac Was Fac Ext Cet Arc Hub Fac Res Tes Res Robot Analysis Total . | . . . . . . . . . . . . . . . . . . . . . . . . . . . Derelict Logs Recovered 13 | . . 1 . 2 . . 2 3 2 1 . 1 . . 1 . . . . . . . . . . . Drone Launches . | . . . . . . . . . . . . . . . . . . . . . . . . . . . Drone Recoveries . | . . . . . . . . . . . . . . . . . . . . . . . . . . . Zionite Intel Received 37 | . . . . . . . . . . . 6 . . . . 2 . 4 14 3 . 2 1 . 3 2 Main Access 1 | . . . . . . . . . . . . . . . . . . . 1 . . . . . . . Emergency Access 2 | . . . . . . . . . . . 1 . . . . . . . . . . 1 . . . . Guard Positions 2 | . . . . . . . . . . . . . . . . . . 1 . 1 . . . . . . Component Stockpiles 4 | . . . . . . . . . . . 1 . . . . 1 . 1 1 . . . . . . . Prototype Stockpiles 5 | . . . . . . . . . . . 1 . . . . 1 . 1 1 . . . . . 1 . Component Schematics 5 | . . . . . . . . . . . 1 . . . . . . . 4 . . . . . . . Prototype Schematics 4 | . . . . . . . . . . . 1 . . . . . . . 1 1 . 1 . . . . Unaware Schematics 2 | . . . . . . . . . . . . . . . . . . . 1 . . . . . 1 . Unaware Analyses 4 | . . . . . . . . . . . . . . . . . . . 2 1 . . . . . 1 Trap Installations 1 | . . . . . . . . . . . . . . . . . . . 1 . . . . . . . Active Terminals 5 | . . . . . . . . . . . 1 . . . . . . . 1 . . . 1 . 1 1 Active Garrisons 1 | . . . . . . . . . . . . . . . . . . . 1 . . . . . . . Depthwide Sectors/-1 1 | . . . . . . . . . . . . . . . . . . 1 . . . . . . . . Exploration | -11 -10 -10 -9 -9 -8 -7 -7 -7 -7 -6 -6 -6 -6 -6 -5 -5 -5 -5 -5 -5 -5 -5 -4 -3 -3 -2 ------------- Run | Scr Mat Min Mat Min Mat Fac Low Low Zio Pro Fac Low Low Dat Pro Fac Was Fac Ext Cet Arc Hub Fac Res Tes Res Turns Passed 27373 | 56 981 1210 2048 1380 2093 2509 527 873 1803 687 1174 500 514 103 743 938 797 1350 1415 492 47 290 1100 292 2152 1299 Spaces Moved 13347 | 46 439 567 730 627 606 962 240 389 856 308 554 240 394 82 468 539 572 775 837 270 36 174 574 151 1188 723 Core 19 | 19 . . . . . . . . . . . . . . . . . . . . . . . . . . Treads . | . . . . . . . . . . . . . . . . . . . . . . . . . . . Legs 13328 | 27 439 567 730 627 606 962 240 389 856 308 554 240 394 82 468 539 572 775 837 270 36 174 574 151 1188 723 Wheels . | . . . . . . . . . . . . . . . . . . . . . . . . . . . Hover . | . . . . . . . . . . . . . . . . . . . . . . . . . . . Flight . | . . . . . . . . . . . . . . . . . . . . . . . . . . . Fastest Speed 50 | 50 120 200 200 200 200 200 210 210 210 210 125 125 127 127 127 122 122 122 118 118 118 118 116 118 117 116 Average Speed 157 | 93 166 200 200 200 241 202 210 210 210 210 127 126 127 127 127 124 122 122 119 118 118 118 117 118 120 116 Slowest Speed 285 | 150 200 200 280 200 280 285 210 210 210 210 130 213 127 127 127 126 122 122 122 118 118 118 118 118 204 202 Overloaded Moves . | . . . . . . . . . . . . . . . . . . . . . . . . . . . Propulsion Burnouts . | . . . . . . . . . . . . . . . . . . . . . . . . . . . Robots Hopped . | . . . . . . . . . . . . . . . . . . . . . . . . . . . Cave-ins Triggered 2 | . . . . . . . . . . . . . . . 1 . . . 1 . . . . . . . Exploration Rate (%) 52 | 4 63 98 78 99 65 27 47 49 87 61 17 39 53 70 66 17 100 16 83 70 54 22 17 4 92 20 Regions Visited 26 Branch Regions 15 Pre-discovered Areas 11 | . 1 . . . . . 1 . 3 1 . . . 1 . . . 4 . . . . . . . . Known Exits Taken 17 | . . . 1 . 1 1 1 1 1 1 1 1 1 1 1 . . 1 . . . 1 1 1 1 . Unknown Exits Taken 7 | 1 1 1 . 1 . . . . . . . . . . . . . . 1 1 1 . . . . . Scrap Searched 29 | . . 1 . 3 . . 1 1 4 3 . 9 2 . 5 . . . . . . . . . . . Spaces Dug 77 | . . . . . 3 4 . 17 . . 3 . 1 . 14 . . 1 . . . . 1 4 4 25 Terrain Destroyed 495 | . . . 33 . 72 4 3 23 . 11 29 . 3 . 16 74 . 6 . . . . 9 4 56 152 Melee 7 | . . . . . . 4 . . . . 3 . . . . . . . . . . . . . . . Projectile 177 | . . . . . 29 . 3 . . . . . 3 . 16 2 . 6 . . . . 8 4 56 50 AOE 311 | . . . 33 . 43 . . 23 . 11 26 . . . . 72 . . . . . . 1 . . 102 Terrain Rammed . | . . . . . . . . . . . . . . . . . . . . . . . . . . . Walls Destroyed . | . . . . . . . . . . . . . . . . . . . . . . . . . . . Machines Disabled . | . . . . . . . . . . . . . . . . . . . . . . . . . . . Actions | -11 -10 -10 -9 -9 -8 -7 -7 -7 -7 -6 -6 -6 -6 -6 -5 -5 -5 -5 -5 -5 -5 -5 -4 -3 -3 -2 --------- Run | Scr Mat Min Mat Min Mat Fac Low Low Zio Pro Fac Low Low Dat Pro Fac Was Fac Ext Cet Arc Hub Fac Res Tes Res Total 18096 | 56 587 631 1117 699 1035 1426 251 427 862 339 981 393 404 81 550 730 620 1117 1231 401 40 231 899 239 1724 1025 Wait 3107 | 3 53 57 233 35 244 347 5 20 4 25 374 116 4 . 28 112 21 294 262 84 5 33 211 66 321 150 Move 13321 | 45 438 566 729 626 605 961 239 388 855 307 553 239 393 81 466 539 571 774 836 269 35 173 573 150 1187 723 Hop . | . . . . . . . . . . . . . . . . . . . . . . . . . . . Pick Up 164 | 2 21 . 14 2 27 15 . . 2 1 11 2 1 . 6 11 . 2 2 3 . 3 7 . 22 10 Fast Attach 89 | 6 2 . 10 . 8 1 . . . . 3 1 . . 2 2 2 2 3 3 . 2 16 1 12 13 Attach 61 | . 3 1 2 . 7 3 . 3 . . 2 2 . . 7 4 . . 1 . . . 4 3 14 5 Detach 6 | . . . 1 . . . . . . . . . . . . . . . . . . . 1 . 3 1 Swap 236 | . 7 . 12 3 18 27 2 6 1 2 10 11 2 . 5 16 2 16 14 12 . 2 17 2 24 25 Drop 205 | . 9 . 23 5 27 21 . . . . 13 4 1 . . 10 2 5 15 8 . 4 16 . 19 23 Fire 732 | . 52 6 90 23 95 40 5 9 . 4 12 8 3 . 29 34 22 24 8 17 . 12 46 14 106 73 Melee 36 | . . . . . . 4 . . . . 3 10 . . 6 . . . 1 5 . . 4 3 . . Ram . | . . . . . . . . . . . . . . . . . . . . . . . . . . . Kick 44 | . 2 1 3 5 4 2 . 1 . . . . . . . 2 . . . . . 2 4 . 16 2 Crush . | . . . . . . . . . . . . . . . . . . . . . . . . . . . Escape Stasis 6 | . . . . . . 5 . . . . . . . . 1 . . . . . . . . . . . Rewire 89 | . . . . . . . . . . . . . . . . . . . 89 . . . . . . . Trap . | . . . . . . . . . . . . . . . . . . . . . . . . . . . Miscellaneous . | . . . . . . . . . . . . . . . . . . . . . . . . . . . Route ------- -11/Scrapyard -10/Materials (discovered 2 exits: *Mat / [*Min]) -10/Mines (discovered 3 exits: *Mat x2 / [*Exi]) -9/Materials (discovered 4 exits: *Mat x2 / *Min / *Sto) -9/Mines (discovered 3 exits: *Mat x2 / *Zio) -8/Materials (discovered 3 exits: *Fac x3) -7/Factory (discovered 4 exits: *Fac x2 / *Low x2) -7/Lower Caves -7/Lower Caves -7/Zion (discovered 2 exits: Dee / *Pro) -6/Proximity Caves -6/Factory (discovered 3 exits: Fac / *Low x2) -6/Lower Caves -6/Lower Caves -6/Data Miner -5/Proximity Caves -5/Factory -5/Waste -5/Factory (discovered 2 exits: *Upp / *Ext) -5/Extension (discovered 3 exits: *Fac x2 / *Cet) -5/Cetus (discovered 2 exits: *Fac / [*Arc]) -5/Archives -5/Hub_04(d) -4/Factory -3/Research -3/Testing -2/Research (discovered 1 exit: [Qua]) History --------- Turn | Location | Event 8 | -11/Scrapyard | Discovered new exit (range 15) 57 | -11/Scrapyard | Entered Materials 304 | -10/Materials | Build established: Mutant 330 | -10/Materials | Discovered new exit (range 11) 972 | -10/Materials | Discovered new exit (range 7) 1038 | -10/Materials | Entered Mines 1102 | -10/Mines | Met a Derelict bent on vengeance 1241 | -10/Mines | Discovered new exit (range 12) 1385 | -10/Mines | Deemed a non-threat by the Exiles lab entrance 1385 | -10/Mines | Discovered new exit (range 5) 1668 | -10/Mines | Learned Materials interactive machine intel 2043 | -10/Mines | Discovered new exit (range 6) 2248 | -10/Mines | Entered Materials 2248 | -9/Materials | Evolved 2 slots: Utility x1, Weapon x1 2249 | -9/Materials | Loaded intel: 18 interactive machine locations 2319 | -9/Materials | Identified exit to Mines 2319 | -9/Materials | Identified exit to Storage 2540 | -9/Materials | Build established: Tank 3137 | -9/Materials | Repaired Cooling System 3169 | -9/Materials | Repaired Aluminum Leg 3202 | -9/Materials | Repaired Imp. Aluminum Leg 3485 | -9/Materials | Discovered new exit (range 8) 4004 | -9/Materials | Discovered new exit (range 10) 4296 | -9/Materials | Entered Mines 4411 | -9/Mines | YI-UF0 nonchalantly dropped a Grenade Launcher on the ground 4592 | -9/Mines | Received a Mining Laser from a helpful Derelict 4799 | -9/Mines | A Derelict revealed a hidden shortcut to a safe place 5029 | -9/Mines | Discovered new exit (range 14) 5389 | -9/Mines | Assisted by bots powering up and referring to "LRC-V3" 5619 | -9/Mines | Discovered new exit (range 14) 5676 | -9/Mines | Entered Materials 5676 | -8/Materials | Accompanied by 1 ally 5676 | -8/Materials | Evolved 2 slots: Propulsion x1, Utility x1 5677 | -8/Materials | Identified exit to Factory 6308 | -8/Materials | Build established: Scavenger-Tank 6316 | -8/Materials | Discovered exit to Factory (range 14) 6912 | -8/Materials | Build established: Tank 7320 | -8/Materials | Repaired Cooling System 7353 | -8/Materials | Repaired Cooling System 7769 | -8/Materials | Entered Factory 7769 | -7/Factory | Evolved 2 slots: Utility x2 8074 | -7/Factory | Build established: Skirmisher 8362 | -7/Factory | Discovered new exit (range 4) 8368 | -7/Factory | Identified exit to Factory 9548 | -7/Factory | Identified exit to Lower Caves 9593 | -7/Factory | Fabricated Cooling System (x1) 9624 | -7/Factory | Fabricated Cooling System (x1) 9949 | -7/Factory | Discovered exit to Factory (range 14) 10113 | -7/Factory | Fabricated Cooling System? 10278 | -7/Factory | Entered Lower Caves 10366 | -7/Lower Caves | Encountered a Warlord checkpoint 10388 | -7/Lower Caves | Learned location of Zion (-7) 10598 | -7/Lower Caves | Learned 8 Factory zone layouts 10721 | -7/Lower Caves | Discovered new exit (range 5) 10731 | -7/Lower Caves | Identified exit to Lower Caves 10805 | -7/Lower Caves | Entered another Lower Caves area 10931 | -7/Lower Caves | Learned Factory security intel 11267 | -7/Lower Caves | Attacked by a faux Warlord 11306 | -7/Lower Caves | Lost 3 parts (3u) 11646 | -7/Lower Caves | Discovered new exit (range 15) 11650 | -7/Lower Caves | Learned Factory stockpile data 11674 | -7/Lower Caves | Identified exit to Zion 11678 | -7/Lower Caves | Entered Zion 11752 | -7/Zion | System corruption cleaned by Quarantine Array 11838 | -7/Zion | Discovered new exit (range 15) 12174 | -7/Zion | Identified exit to Deep Caves 12585 | -7/Zion | Learned Factory emergency access door positions 12767 | -7/Zion | Found CR-A16's Pointy Stick 12793 | -7/Zion | Learned location of Quarantine (-2) 12926 | -7/Zion | Visited the Megawrench Repair Shop 12934 | -7/Zion | Megawrench repaired 12 parts 13138 | -7/Zion | Imprinted 13140 | -7/Zion | Declared Zion's savior 13324 | -7/Zion | Learned 4 Factory zone layouts 13475 | -7/Zion | Identified exit to Proximity Caves 13481 | -7/Zion | Entered Proximity Caves 13481 | -6/Proximity Caves | Accompanied by 4 allies 13483 | -6/Proximity Caves | Spotted B-75 Beast 13500 | -6/Proximity Caves | Destroyed B-75 Beast 14125 | -6/Proximity Caves | Discovered exit to Factory (range 13) 14164 | -6/Proximity Caves | Attracted the attention of an 0b10 checkpoint 14168 | -6/Proximity Caves | Entered Factory 14168 | -6/Factory | Accompanied by 1 ally 14168 | -6/Factory | Evolved 2 slots: Propulsion x1, Utility x1 14169 | -6/Factory | Identified exit to Lower Caves 14170 | -6/Factory | Identified exit to Factory 14332 | -6/Factory | Zion Heavy squad teleported in 14539 | -6/Factory | Retrieved Zion intel report: Component Schematics 14561 | -6/Factory | Retrieved Zion intel report: Prototype Schematics 14655 | -6/Factory | Retrieved Zion intel report: Emergency Access 14670 | -6/Factory | Retrieved Zion intel report: Component Stockpiles 14693 | -6/Factory | Allied Derelicts emerged from ambush trap array 14712 | -6/Factory | Retrieved Zion intel report: Prototype Stockpiles 14888 | -6/Factory | Fabricated Gatling Laser? 15049 | -6/Factory | Discovered exit to Lower Caves (range 11) 15050 | -6/Factory | Retrieved Zion intel report: Active Terminals 15159 | -6/Factory | Fabricated Gatling Laser (x2) 15169 | -6/Factory | Local fabrication network quarantined 15218 | -6/Factory | First assault squad dispatched 15315 | -6/Factory | Fabricated Exp. Targeting Computer (x1) 15342 | -6/Factory | Entered Lower Caves 15528 | -6/Lower Caves | Spotted B-75 Beast 15598 | -6/Lower Caves | Destroyed B-75 Beast 15661 | -6/Lower Caves | Learned 4 Factory zone layouts 15820 | -6/Lower Caves | Discovered new exit (range 16) 15838 | -6/Lower Caves | Identified exit to Lower Caves 15842 | -6/Lower Caves | Entered another Lower Caves area 16223 | -6/Lower Caves | Discovered new exit (range 9) 16232 | -6/Lower Caves | Identified exit to Data Miner 16356 | -6/Lower Caves | Entered Data Miner 16356 | -6/Data Miner | Discovered new exit (range 6) 16357 | -6/Data Miner | Build established: Mutant 16381 | -6/Data Miner | Met Data Miner 16410 | -6/Data Miner | Learned location of Section 7 (-2) 16410 | -6/Data Miner | Acquired the access code to Warlord's prototype stash 16428 | -6/Data Miner | Received God Mode back door access code from Data Miner 16458 | -6/Data Miner | Identified exit to Proximity Caves 16459 | -6/Data Miner | Entered Proximity Caves 16469 | -5/Proximity Caves | Learned Factory garrison access intel 16593 | -5/Proximity Caves | Crushed by falling debris 16594 | -5/Proximity Caves | System corruption reached 10% 16624 | -5/Proximity Caves | Lost 3 parts (2u1w) 16638 | -5/Proximity Caves | Escorted by Enhanced Grunt 16943 | -5/Proximity Caves | Spotted B-75 Beast 16980 | -5/Proximity Caves | Destroyed B-75 Beast 17004 | -5/Proximity Caves | Lost 4 parts (2n2u) 17165 | -5/Proximity Caves | Attracted the attention of an 0b10 checkpoint 17181 | -5/Proximity Caves | Discovered exit to Factory (range 12) 17202 | -5/Proximity Caves | Entered Factory 17202 | -5/Factory | Evolved 2 slots: Power x1, Propulsion x1 17203 | -5/Factory | Identified exit to Factory 17204 | -5/Factory | Loaded intel: 4 garrison access locations 17240 | -5/Factory | Zion Heavy squad teleported in 17304 | -5/Factory | Build established: Gunner 17325 | -5/Factory | Zion Fire squad teleported in 17433 | -5/Factory | Retrieved Zion intel report: Prototype Stockpiles 17567 | -5/Factory | Retrieved Zion intel report: Component Stockpiles 17675 | -5/Factory | Build established: Machinist-Gunner 17802 | -5/Factory | First assault squad dispatched 17817 | -5/Factory | Incoming assault squad redirected 18057 | -5/Factory | Cargo convoy interrupted 18126 | -5/Factory | Incoming assault squad redirected 18127 | -5/Factory | Fabricated Exp. Terrain Scan Processor (x1) 18129 | -5/Factory | Incoming assault squad redirected 18140 | -5/Factory | Sucked down chute 18140 | -5/Factory | Entered Waste 18149 | -5/Waste | Spotted C-40 Crusher 18158 | -5/Waste | Destroyed C-40 Crusher 18172 | -5/Waste | Found Prototype Device 18172 | -5/Waste | Identified Exp. Focal Shield 18178 | -5/Waste | Spotted C-40 Crusher 18187 | -5/Waste | Destroyed C-40 Crusher 18197 | -5/Waste | Spotted C-40 Crusher 18236 | -5/Waste | Destroyed C-40 Crusher 18239 | -5/Waste | Spotted C-40 Crusher 18250 | -5/Waste | Destroyed C-40 Crusher 18276 | -5/Waste | Destroyed C-40 Crusher 18281 | -5/Waste | Spotted C-40 Crusher 18291 | -5/Waste | Destroyed C-40 Crusher 18363 | -5/Waste | Discovered new exit (range 15) 18937 | -5/Waste | Entered Factory 19337 | -5/Factory | Discovered new exit (range 11) 19339 | -5/Factory | Retrieved Zion intel report: Guard Positions 19367 | -5/Factory | Identified exit to Upper Caves 19409 | -5/Factory | Discovered new exit (range 6) 19410 | -5/Factory | Retrieved Zion intel report: Prototype Stockpiles 19492 | -5/Factory | Retrieved Zion intel report: Depthwide Sectors/-1 19581 | -5/Factory | Incoming investigation squad redirected 19669 | -5/Factory | Build established: Scavenger-Skirmisher 19725 | -5/Factory | Retrieved Zion intel report: Component Stockpiles 19799 | -5/Factory | Identified exit to Extension 20281 | -5/Factory | Zion Resource Resupply teleported in 20287 | -5/Factory | Entered Extension 20287 | -5/Extension | Accompanied by 1 ally 20339 | -5/Extension | Rescued a captive Derelict 20340 | -5/Extension | Zion Fire squad teleported in 20346 | -5/Extension | Rescued A7 20355 | -5/Extension | Rescued a captive Derelict 20355 | -5/Extension | Retrieved Zion intel report: Prototype Schematics 20367 | -5/Extension | Rescued a captive Derelict 20367 | -5/Extension | Retrieved Zion intel report: Component Schematics 20522 | -5/Extension | Rescued a captive Derelict 20522 | -5/Extension | Retrieved Zion intel report: Component Stockpiles 20525 | -5/Extension | Rescued a captive Derelict 20535 | -5/Extension | Retrieved Zion intel report: Active Terminals 20540 | -5/Extension | Retrieved Zion intel report: Main Access 20569 | -5/Extension | Rescued a captive Derelict 20569 | -5/Extension | Retrieved Zion intel report: Component Schematics 20576 | -5/Extension | Rescued a captive Derelict 20580 | -5/Extension | Rescued a captive Derelict 20580 | -5/Extension | Retrieved Zion intel report: Unaware Schematics 21065 | -5/Extension | Spotted B-75 Beast 21071 | -5/Extension | Spotted B-75 Beast 21078 | -5/Extension | Allies destroyed B-75 Beast 21085 | -5/Extension | Allies destroyed B-75 Beast 21116 | -5/Extension | Retrieved Zion intel report: Unaware Analyses 21117 | -5/Extension | Zion Fire squad teleported in 21140 | -5/Extension | Rescued a captive Derelict 21206 | -5/Extension | Rescued a captive Derelict 21206 | -5/Extension | Retrieved Zion intel report: Trap Installations 21223 | -5/Extension | Incoming investigation squad redirected 21232 | -5/Extension | Rescued a captive Derelict 21232 | -5/Extension | Retrieved Zion intel report: Active Garrisons 21243 | -5/Extension | Retrieved Zion intel report: Component Schematics 21422 | -5/Extension | Retrieved Zion intel report: Prototype Stockpiles 21451 | -5/Extension | Retrieved Zion intel report: Unaware Analyses 21451 | -5/Extension | Rescued a captive Derelict 21456 | -5/Extension | Rescued a captive Derelict 21463 | -5/Extension | Build established: Commander-Skirmisher 21487 | -5/Extension | First assault squad dispatched 21503 | -5/Extension | Rescued a captive Derelict 21503 | -5/Extension | Retrieved Zion intel report: Component Schematics 21530 | -5/Extension | Crushed by falling debris 21637 | -5/Extension | Discovered new exit (range 6) 21702 | -5/Extension | Entered Cetus 21702 | -5/Cetus | Accompanied by 18 allies (A7) 21702 | -5/Cetus | 4 allies did not survive the journey 21707 | -5/Cetus | Acquired a Cetus Manufacturing Module code from A7 21738 | -5/Cetus | Spotted Cetus Guard 21738 | -5/Cetus | Spotted Cetus Guard 21739 | -5/Cetus | Spotted Cetus Guard 21748 | -5/Cetus | Allies destroyed Cetus Guard 21748 | -5/Cetus | Allies destroyed Cetus Guard 21748 | -5/Cetus | Spotted Cetus Guard 21749 | -5/Cetus | Allies destroyed Cetus Guard 21756 | -5/Cetus | Allies destroyed Cetus Guard 21821 | -5/Cetus | Build established: Commander-Gunner 21840 | -5/Cetus | Started Cetus Manufacturing Module 21852 | -5/Cetus | Retrieved Zion intel report: Unaware Analyses 21865 | -5/Cetus | Manufactured an Enhanced Grunt 21890 | -5/Cetus | Manufactured an Enhanced Grunt 21915 | -5/Cetus | Manufactured an Enhanced Grunt 21940 | -5/Cetus | Manufactured an Enhanced Grunt 21944 | -5/Cetus | Retrieved Zion intel report: Prototype Schematics 21965 | -5/Cetus | Manufactured an Enhanced Grunt 21969 | -5/Cetus | Retrieved Zion intel report: Guard Positions 22028 | -5/Cetus | Discovered new exit (range 15) 22058 | -5/Cetus | Spotted Cetus Guard 22058 | -5/Cetus | Spotted Cetus Guard 22060 | -5/Cetus | Spotted Cetus Guard 22061 | -5/Cetus | Spotted Cetus Guard 22069 | -5/Cetus | Allies destroyed Cetus Guard 22072 | -5/Cetus | Destroyed Cetus Guard 22073 | -5/Cetus | Allies destroyed Cetus Guard 22076 | -5/Cetus | Allies destroyed Cetus Guard 22081 | -5/Cetus | Discovered exit to Factory (range 15) 22091 | -5/Cetus | Scared off Revision 17 22167 | -5/Cetus | Destroyed A7 22174 | -5/Cetus | Found Prototype Protection 22174 | -5/Cetus | Identified Med. Regenerative Plating 22177 | -5/Cetus | Extracted ID and sensor layout for unrecognized location from A7's data core 22194 | -5/Cetus | Entered Archives 22194 | -5/Archives | Accompanied by 4 allies 22210 | -5/Archives | Met Zhirov 22216 | -5/Archives | Reinforcements dispatched to Archives 22220 | -5/Archives | Discovered new exit (range 13) 22241 | -5/Archives | Entered Hub_04(d) 22241 | -5/Hub_04(d) | Accompanied by 3 allies 22260 | -5/Hub_04(d) | Zion Light squad teleported in 22367 | -5/Hub_04(d) | Retrieved Zion intel report: Emergency Access 22389 | -5/Hub_04(d) | Discovered exit to Factory (range 9) 22431 | -5/Hub_04(d) | Spotted B-75 Beast 22446 | -5/Hub_04(d) | Allies destroyed B-75 Beast 22486 | -5/Hub_04(d) | Retrieved Zion intel report: Prototype Schematics 22487 | -5/Hub_04(d) | Garrison activated, responded to threat 22531 | -5/Hub_04(d) | Entered Factory 22531 | -4/Factory | Accompanied by 3 allies 22531 | -4/Factory | Evolved 2 slots: Utility x2 22627 | -4/Factory | Spotted B-86 Titan 22667 | -4/Factory | Allies destroyed B-86 Titan 22672 | -4/Factory | Incoming investigation squad redirected 22728 | -4/Factory | Build established: Scavenger-Skirmisher 22746 | -4/Factory | Found Prototype Launcher 22746 | -4/Factory | Identified Mni. Smartbomb Launcher 22813 | -4/Factory | Zion Heavy squad teleported in 22963 | -4/Factory | Incoming investigation squad redirected 22980 | -4/Factory | Repaired Gatling Laser 23033 | -4/Factory | Discovered new exit (range 19) 23064 | -4/Factory | Garrison activated, responded to threat 23178 | -4/Factory | Identified exit to Research 23184 | -4/Factory | Retrieved Zion intel report: Active Terminals 23185 | -4/Factory | Zion Fire squad teleported in 23321 | -4/Factory | Local fabrication network quarantined 23384 | -4/Factory | Fabricated Hvy. Gatling Laser (x1) 23561 | -4/Factory | First assault squad dispatched 23576 | -4/Factory | Zion Demo squad teleported in 23595 | -4/Factory | Incoming investigation squad redirected 23631 | -4/Factory | Entered Research 23631 | -3/Research | Evolved 2 slots: Utility x2 23680 | -3/Research | Discovered new exit (range 3) 23692 | -3/Research | Identified exit to Testing 23913 | -3/Research | First assault squad dispatched 23923 | -3/Research | Entered Testing 23989 | -3/Testing | Found Prototype Ballistic Cannon 24173 | -3/Testing | First assault squad dispatched 24207 | -3/Testing | Identified Omega Cannon 24231 | -3/Testing | Incoming assault squad redirected 24458 | -3/Testing | Lost 3 parts (2p1n) 24632 | -3/Testing | Found Prototype Processor 24633 | -3/Testing | Identified Exp. Signal Interpreter 24749 | -3/Testing | Retrieved Zion intel report: Active Terminals 24764 | -3/Testing | System corruption reached 10% 24815 | -3/Testing | Retrieved Zion intel report: Unaware Schematics 24855 | -3/Testing | Incoming investigation squad redirected 24990 | -3/Testing | Fabricated Exp. Targeting Computer (x1) 25042 | -3/Testing | Retrieved Zion intel report: Prototype Stockpiles 25188 | -3/Testing | Incoming assault squad redirected 25204 | -3/Testing | Found Prototype Protection 25454 | -3/Testing | Incoming assault squad redirected 25467 | -3/Testing | Terminal network hard line cut 25600 | -3/Testing | Discovered new exit (range 4) 25602 | -3/Testing | Identified exit to Research 25703 | -3/Testing | Incoming assault squad redirected 25746 | -3/Testing | Destroyed 7 combat bots 25748 | -3/Testing | Lost 3 parts (2u1w) 26001 | -3/Testing | Found Prototype Processor 26010 | -3/Testing | Build established: Scavenger-Gunner 26053 | -3/Testing | Found Prototype Energy Cannon 26053 | -3/Testing | Identified Disintegrator 26075 | -3/Testing | Entered Research 26075 | -2/Research | Evolved 2 slots: Propulsion x1, Utility x1 26077 | -2/Research | Identified Hvy. Regenerative Plating 26196 | -2/Research | Retrieved Zion intel report: Active Terminals 26197 | -2/Research | Zion Light squad teleported in 26288 | -2/Research | Found Prototype Device 26289 | -2/Research | Identified Thermal Barrier 26294 | -2/Research | Identified Spectral Analyzer 26368 | -2/Research | First assault squad dispatched 26398 | -2/Research | Found Prototype Protection 26552 | -2/Research | Build established: Scavenger-Skirmisher 26566 | -2/Research | Found Prototype Protection 26567 | -2/Research | Identified Zio. Weapon Casing (x2) 26769 | -2/Research | Destroyed 10 combat bots 26806 | -2/Research | Retrieved Zion intel report: Unaware Analyses 26807 | -2/Research | Zion Light squad teleported in 27029 | -2/Research | High security lockdown imminent 27096 | -2/Research | Discovered new exit (range 24) 27109 | -2/Research | High security lockdown engaged 27374 | -2/Research | Self-destructed Last Messages --------------- 27330_ Stasis field depleted. 27331_ I-47 Archangel distress signal jammed. 27332_ Y-72 Warden destroyed. 27333_ 28-OLQ(z) destroyed. 27333_ I-47 Archangel distress signal jammed. 27341_ G-73 Enforcer unfolds itself. 27341_ E-15 Imp unfolds itself. 27341_ E-15 Imp sneak attacks. 27341_ Z0-9V6(z) Prototype Protection blown off. 27341_ Z0-9V6(z) Prototype Energy Gun blown off. 27343_ Z0-9V6(z) destroyed. 27347_ Exp. Targeting Computer blown off. 27347_ E-15 Imp destroyed. 27349_ Critical hit (Burn: +37). 27352_ Lgt. Quantum Reactor destroyed. 27357_ C-30 ARC bursts open, deploying its payload. 27357_ H-88 Terminator unfolds itself. 27357_ M-36 Artificer unfolds itself. 27357_ Slug penetrates Wall. 27373_ P-80 Master resets B-74 Champion, system corruption cleaned. Map ----- +----------------------------------------------------+ | ???????????????#?#### ? ?#########??### ? ? | | ?????????????# ? ????? ## # | | ?????????????#? ? ??? ## ? ? ??########## | | ????????????#??? ??+ ## ? ############ | | ?????????#???? #? ## ? ############ | | ???????????###? ? # ?# ############ | | ????????????##? ? ##########+#?###?######### | | ?????????####?#?##?## #### | | ????????#?###?####### #### | | ???????????## ?? ? # #### | | ???????#??#?? ? #### #################+# | | ??????#?##### # #### ###?########## | | ???????######?####### #### ############## | | ??????#???####? # #### ####### ## | | ???????##?##?? # ! ## | | ???????????###?? # [%= ## | | ???????????##?? ? # ! "## | | ?????????##?## / #####/######## %!"###### | | ???????#???###? ? # # g gh #####= " ###### | | ???????????########## # p l #####/ ! / | | ????????#??? ?? #? # s"""g #### ### | | ?????#?###?? # # """ = #### ### | | ?????????### ? # # """ ##### !# | | ???????????? # #b ##### # # | | ????????##?? + # ##### # # | | ???????#???#? ? # #@ ##### # ! "# | | ???????????? ? # ###############=! #" "%# | | ?????????#?# ? # ###############%! # " "# | | ???????#???#? # ###############= "#+### | | ?????????#???######## ###############! ! %### | | ????????############# ###############[ %= ##### | | ????????############# ############### [ ##### | | ??????####??######### ################+#"####### | | ??????############### ############ ##### | | ????################# ############ ! ##### | | ?????##############T ########## ##### | | ??##?############"""""""""""######## """ ### | | ???################ ########## """ ### | | ??###############"""""""""""######## """ ### | | ??#?############### ########## """" | | ??##?############"""""""""""######## ] ### | | ??################# ###################### | | ###?###############"" ""###################### | | ###################"" < ""###################### | | ###################" "######################## | | ###################"""" ""######################## | | #?#################"""""""######################## | | ################################################ | | ############################################### | | #####################"""####################### | +----------------------------------------------------+ Best States ------------- Heat Dissipation 170 Energy Generation 45 Energy Capacity 1030 Matter Stores 300 Matter Capacity 300 Sight Range 16 Robot Scan Range 16 Terrain Scan Range 24 Terrain Scan Density 1010 Jamming Range 16 Armor Coverage 600 Weapon Cycling 20 Evasion (%) 55 Targeting Accuracy 12 Armor Integrity Analysis 30 Particle Charging 25 Offensive Hacking 10 Item Schematics ----------------- Cooling System | -9/Materials | Scanalyzed Component Analysis Suite | -6/Factory | Z-intel Proton Missile Launcher | -6/Factory | Z-intel Power Maul | -6/Factory | Z-intel Adv. Heat Sink | -6/Factory | Z-intel Matter Filter | -6/Factory | Z-intel Cargo Storage Unit | -6/Factory | Z-intel Mic. Nuclear Core | -6/Factory | Z-intel Coolant Injector | -6/Factory | Z-intel Med. Matter Pod | -6/Factory | Z-intel Hvy. Flak Cannon | -6/Factory | Z-intel Gatling Laser | -6/Factory | Z-intel Nuclear Core | -6/Factory | Z-intel Biomechanical Wings | -6/Factory | Z-intel Imp. Spread Laser | -6/Factory | Z-intel Exp. Targeting Computer | -6/Factory | Z-intel Ion Burst Cannon | -6/Factory | Z-intel F-cell Engine | -6/Factory | Z-intel Cld. Airjet | -6/Factory | Z-intel Cld. Deuterium Engine | -6/Factory | Z-intel Com. Ion Cannon | -6/Factory | Z-intel Cld. Plasma Cannon | -6/Factory | Z-intel Cld. Cesium-ion Thruster | -6/Factory | Z-intel Cld. Particle Cannon | -6/Factory | Z-intel Exp. Weapon Shielding | -6/Factory | Z-intel Combat Drone Bay | -6/Data Miner | Free Lgt. Regenerative Plating | -6/Data Miner | Free Exp. Flexi-carbon Leg | -6/Data Miner | Free Cmb. Gravmag System | -6/Data Miner | Free Exp. Cesium-ion Thruster | -6/Data Miner | Free Exp. Terrain Scan Processor | -6/Data Miner | Free Tactical Coordination Suite | -6/Data Miner | Free Cloaking Device | -6/Data Miner | Free Kinetic Spear | -6/Data Miner | Free Adv. Terrain Scanner | -5/Factory | Scanalyzed Gravity Neutralizing Apparatus | -5/Extension | Z-intel Hvy. Gatling Laser | -5/Extension | Z-intel Ionic Axe | -5/Extension | Z-intel Enh. Coil Gun | -5/Extension | Z-intel Tiamat Missile Launcher | -5/Extension | Z-intel Rocket Array | -5/Extension | Z-intel Prc. Matter Filter | -5/Extension | Z-intel Adv. Power Amplifier | -5/Extension | Z-intel Antimatter Cannon | -5/Extension | Z-intel Thunder Hammer | -5/Extension | Z-intel Cld. Plasma Rifle | -5/Extension | Z-intel Imp. Thermal Defense Suite | -5/Extension | Z-intel Microactuators | -5/Extension | Z-intel Lyr. Medium Armor Plating | -5/Extension | Z-intel Phase Cannon | -5/Extension | Z-intel Adv. Targeting Computer | -5/Extension | Z-intel System Shield | -5/Extension | Z-intel Imp. Medium Armor Plating | -5/Extension | Z-intel Com. Wheel | -5/Extension | Z-intel Tesla Rifle | -5/Extension | Z-intel Plasma Rifle | -5/Extension | Z-intel Field Propulsion Drive | -5/Extension | Z-intel Gyrokinetic Inverter | -5/Extension | Z-intel Adv. Sensor Array | -5/Extension | Z-intel Recalibrator | -5/Extension | Z-intel Imp. Kinecellerator | -5/Extension | Z-intel Enh. Optical Array | -5/Extension | Z-intel Kinecellerator | -5/Extension | Z-intel Imp. Component Analysis Suite | -5/Extension | Z-intel Scythe | -5/Extension | Z-intel Energy Filter | -5/Extension | Z-intel Imp. Datajack | -5/Extension | Z-intel Imp. Trap Scanner | -5/Extension | Z-intel Imp. Targeting Computer | -5/Extension | Z-intel Hvy. Laser | -5/Extension | Z-intel Adv. Plasma Cannon | -5/Extension | Z-intel Hyp. Gauss Cannon | -5/Extension | Z-intel Mass Driver | -5/Extension | Z-intel Variable Charge Gun | -5/Extension | Z-intel Lrn. Missile Launcher | -5/Extension | Z-intel Imp. Field Recycling Unit | -5/Extension | Z-intel Adv. Shield Generator | -5/Extension | Z-intel Wave Gun | -5/Extension | Z-intel Arm. Huge Wheel | -5/Extension | Z-intel Point Defense System | -5/Extension | Z-intel Neutron Cannon | -5/Extension | Z-intel Lyr. Light Armor Plating | -5/Extension | Z-intel KE Penetrator | -5/Extension | Z-intel Weapon Cycler | -5/Extension | Z-intel Imp. Medium Treads | -5/Extension | Z-intel Transmission Jammer | -5/Extension | Z-intel Imp. Thermal Converter | -5/Extension | Z-intel Overload Regulator | -5/Extension | Z-intel Arm. Leg | -5/Extension | Z-intel Powered Hammer | -5/Extension | Z-intel Adv. Trap Extractor | -5/Extension | Z-intel Imp. Coolant Injector | -5/Extension | Z-intel Lrg. Storage Unit | -5/Extension | Z-intel Triangulator | -5/Extension | Z-intel Terrain Scan Processor | -5/Extension | Z-intel Maneuvering Thrusters | -5/Extension | Z-intel Imp. Transmission Jammer | -5/Extension | Z-intel Lrn. Proton Cannon | -5/Extension | Z-intel Imp. Launcher Guidance Computer | -5/Extension | Z-intel Huge Storage Unit | -5/Extension | Z-intel Phase Shifter | -5/Extension | Z-intel Linear Gravjet | -5/Extension | Z-intel Drone Bay | -5/Extension | Z-intel Gauss Cannon | -5/Extension | Z-intel Imp. Core Analyzer | -5/Extension | Z-intel Imp. Airjet | -5/Cetus | Z-intel Lgt. Neutrino Core | -5/Cetus | Z-intel Cld. VTOL Module | -5/Cetus | Z-intel Imp. Energy Well | -5/Cetus | Z-intel Fusion Reactor | -5/Cetus | Z-intel Enh. Nuclear Core | -5/Cetus | Z-intel Cld. Fission Core | -5/Cetus | Z-intel Enh. Fission Core | -5/Cetus | Z-intel Scatter Rocket Array | -5/Cetus | Z-intel Cold Fusion Reactor | -5/Cetus | Z-intel Prc. Shock Rifle | -5/Cetus | Z-intel Imp. Lightning Gun | -5/Hub_04(d) | Z-intel Cld. Aerolev Unit | -5/Hub_04(d) | Z-intel Plasma Sword | -5/Hub_04(d) | Z-intel Tri-rail Accelerator | -5/Hub_04(d) | Z-intel Gui. EMP Blaster | -5/Hub_04(d) | Z-intel Enh. Armored Leg | -5/Hub_04(d) | Z-intel Hvy. Proton Cannon | -5/Hub_04(d) | Z-intel Thermal Defense Suite | -5/Hub_04(d) | Z-intel Exp. Heat Sink | -5/Hub_04(d) | Z-intel Imp. Heavy Machine Gun | -5/Hub_04(d) | Z-intel Imp. Cesium-ion Thruster | -5/Hub_04(d) | Z-intel Robot Schematics ------------------ S-27 Virus | -6/Data Miner | Free G-50 Soldier | -6/Data Miner | Free L-41 Fighter | -6/Data Miner | Free I-36 Angel | -6/Data Miner | Free R-10 Processor | -5/Extension | Z-intel A-15 Conveyor | -5/Extension | Z-intel I-47 Archangel | -5/Extension | Z-intel A-02 Transporter | -3/Testing | Z-intel Y-72 Warden | -3/Testing | Z-intel K-01 Serf | -3/Testing | Z-intel T-07 Excavator | -3/Testing | Z-intel B-74 Champion | -3/Testing | Z-intel Fabricated ------------ Cooling System | x1 | -7/Factory Cooling System | x1 | -7/Factory Cooling System | x1 | -7/Factory Gatling Laser | x2 | -6/Factory Gatling Laser | x2 | -6/Factory Exp. Targeting Computer | x1 | -6/Factory Exp. Terrain Scan Processor | x1 | -5/Factory Hvy. Gatling Laser | x1 | -4/Factory Exp. Targeting Computer | x1 | -3/Testing Alien Tech Used ----------------- None Achievements -------------- None Challenges ------------ None Game ------ Seed SpikedIntegratedTerrabomb Manual? 0 Play Time 03:45:22 Cumulative 1245.0 hours Start 2021.06.04 @ 16:16:29 End 2021.06.04 @ 21:38:09 Sessions 1 Manual Loads 0 Difficulty Rogue Special Mode None Game No. 422 Rogue 422 Adventurer 0 Explorer 0 Win Type - Total 90 Types 19/12/37/5/1/2/12/1/1 Lore% 96 Gallery% 96 Achievement% 85 Wizard Run 0 Options --------- ASCII 0 Keyboard 0 Movement Numpad Keybinds 0 Fullscreen 1 Font 18/SmallcapsGlow Map View 76x50 Tactical HUD 1 Map Filters NONE Filters NONE Steam 1 RUN: 8b7bf0d8-aed7-469b-9bc9-94d7d2b867d0